[Event "Gibraltar Amateurs A 2019"]
[Site "Caleta"]
[Date "2019.01.24"]
[Round "4"]
[White "Ocana, Jeremy"]
[Black "Leimeister, Winfried"]
[Result "1-0"]
[ECO "A48"]
[WhiteElo "1695"]
[BlackElo "1870"]
[Annotator "NA"]
[PlyCount "85"]
[EventDate "2019.01.18"]
[EventType "swiss"]
[EventCountry "GGB"]
[SourceTitle "playchess.com"]
[Source "ChessBase"]
[SourceQuality "1"]
[TimeControl "6600+10"]

1. d4 {[%emt 0:00:40]} Nf6 {[%emt 0:00:24]} 2. Bf4 {[%emt 0:00:06]} c5 {[%emt 0:00:56]} 3. e3 {[%emt 0:03:20]} g6 {[%emt 0:01:49]} 4. c3 {[%emt 0:00:12]} b6 {[%emt 0:00:08]} 5. Nf3 {[%emt 0:03:59]} Bg7 {[%emt 0:00:51]} 6. h3 {[%emt 0:00:24]} O-O {[%emt 0:01:45]} 7. Be2 {[%emt 0:00:04]} d6 {[%emt 0:02:17]} 8. O-O {[%emt 0:03:22]} Ba6 {[%emt 0:03:12]} 9. Nbd2 {[%emt 0:03:22]} Qc8 {[%emt 0:02:36]} 10. b4 {[%emt 0:07:08]} Nd5 {[%emt 0:04:30]} 11. Bxa6 {[%emt 0:02:23]} Qxa6 {[%emt 0:04:57]} 12. Qb3 {[%emt 0:00:16]} Nxf4 {[%emt 0:00:58]} 13. exf4 {[%emt 0:01:09]} Nd7 {[%emt 0:05:48]} 14. Rfe1 {[%emt 0:11:31]} Rae8 {[%emt 0:11:19]} 15. Rac1 {[%emt 0:07:23]} b5 {[%emt 0:06:51]} 16. bxc5 {[%emt 0:02:53]} dxc5 {[%emt 0:00:45]} 17. Rb1 {[%emt 0:00:03]} cxd4 {[%emt 0:05:45]} 18. cxd4 $11 {[%emt 0:02:52]} Qd6 {[%emt 0:00:40]} 19. Qxb5 {[%emt 0:12:14]} a6 {[%emt 0:21:15]} 20. Qa4 {[%emt 0:08:01]} Rb8 {[%emt 0:00:18]} 21. Nc4 {[%emt 0:03:24]} Qd5 {[%emt 0:04:01]} 22. Rxb8 {[%emt 0:02:36]} Nxb8 {[%emt 0:02:02]} 23. Rxe7 {[%emt 0:07:42]} Bxd4 {[%emt 0:02:09]} 24. Rc7 {[%emt 0:02:03]} Bg7 {[%emt 0:09:59]} 25. Nce5 {[%emt 0:03:08]} h6 {[%emt 0:08:24]} 26. Qc2 {[%emt 0:04:00]} Bxe5 {[%emt 0:03:25]} 27. Nxe5 {[%emt 0:00:03]} Qe6 {[%emt 0:00:14]} 28. Qc4 {[%emt 0:01:52]} Qxc4 {[%emt 0:03:44]} 29. Rxc4 {[%emt 0:01:39]} Kg7 {[%emt 0:00:25]} 30. Rc7 {[%emt 0:00:06]} Kf6 {[%emt 0:00:01]} 31. Nc6 {[%emt 0:01:10]} Re8 {[%emt 0:00:39]} 32. Ne5 {[%emt 0:00:30]} Rf8 {[%emt 0:00:17]} 33. Rb7 {[%emt 0:00:39]} Ke6 {[%emt 0:00:14]} 34. Rb6+ {[%emt 0:01:00]} Kd5 {[%emt 0:00:03]} 35. f3 {[%emt 0:00:53]} g5 {[%emt 0:00:20]} 36. Ng4 {[%emt 0:01:15]} f5 {[%emt 0:01:39]} 37. Nxh6 {[%emt 0:00:16]} gxf4 {[%emt 0:00:27]} 38. Nxf5 {[%emt 0:00:10]} Nc6 {[%emt 0:00:13]} 39. Nh4 {[%emt 0:00:38]} Re8 {[%emt 0:00:11]} 40. Rb2 {[%emt 0:00:40]} Nd4 {[%emt 0:00:15]} 41. Ng6 {[%emt 0:00:13]} Ne2+ {[%emt 0:00:24]} 42. Rxe2 {[%emt 0:00:12]} Rxe2 {[%emt 0:00:01]} 43. Nxf4+ {[%emt 0:00:01]} 1-0

[Event "Gibraltar Amateurs A 2019"]
[Site "Caleta"]
[Date "2019.01.24"]
[Round "4"]
[White "Bussmann, John"]
[Black "Bryant, Richard B E"]
[Result "1-0"]
[ECO "C01"]
[WhiteElo "1671"]
[BlackElo "1862"]
[Annotator "NA"]
[PlyCount "87"]
[EventDate "2019.01.18"]
[EventType "swiss"]
[EventCountry "GGB"]
[SourceTitle "playchess.com"]
[Source "ChessBase"]
[SourceQuality "1"]
[TimeControl "6600+10"]

1. e4 {[%emt 0:02:47]} e6 {[%emt 0:00:00]} 2. d4 {[%emt 0:00:33]} d5 {[%emt 0:00:00]} 3. exd5 {[%emt 0:01:17]} exd5 {[%emt 0:00:08]} 4. c4 {[%emt 0:00:03]} c6 {[%emt 0:00:13]} 5. Nc3 {[%emt 0:00:38]} Nf6 {[%emt 0:00:36]} 6. Bd3 {[%emt 0:00:28]} Be6 {[%emt 0:00:44]} 7. c5 {[%emt 0:03:27]} Be7 {[%emt 0:01:57]} 8. f4 {[%emt 0:08:09]} b6 {[%emt 0:05:31]} 9. b4 {[%emt 0:00:47]} a5 {[%emt 0:06:32]} 10. Ba3 {[%emt 0:02:01]} axb4 {[%emt 0:01:19]} 11. Bxb4 {[%emt 0:00:03]} bxc5 {[%emt 0:00:28]} 12. dxc5 {[%emt 0:06:25]} Na6 {[%emt 0:01:19]} 13. Bxa6 {[%emt 0:01:14]} Rxa6 {[%emt 0:00:19]} 14. Qd3 {[%emt 0:00:09]} Ra7 {[%emt 0:01:08]} 15. Nf3 {[%emt 0:02:07]} Qb8 {[%emt 0:03:07]} 16. Qd4 {[%emt 0:04:51]} O-O {[%emt 0:08:50]} 17. Ne5 $17 {[%emt 0:01:16]} Qc8 {[%emt 0:00:40]} 18. h3 {[%emt 0:02:24]} Nh5 {[%emt 0:04:48]} 19. O-O {[%emt 0:04:21]} Ng3 {[%emt 0:00:50]} 20. Rf3 {[%emt 0:02:41]} Nf5 {[%emt 0:00:06]} 21. Qd2 {[%emt 0:00:31]} Bf6 {[%emt 0:02:10]} 22. Ng4 {[%emt 0:13:45]} Bh4 {[%emt 0:01:46]} 23. Ne2 {[%emt 0:02:48]} Re8 {[%emt 0:02:08]} 24. Kh2 {[%emt 0:09:25]} h5 {[%emt 0:01:45]} 25. Ne5 {[%emt 0:00:43]} Qc7 {[%emt 0:02:07]} 26. Nd4 {[%emt 0:06:34]} Nxd4 {[%emt 0:00:40]} 27. Qxd4 {[%emt 0:00:04]} Bf6 {[%emt 0:00:22]} 28. a3 {[%emt 0:03:33]} Bf5 {[%emt 0:00:32]} 29. Bc3 {[%emt 0:02:57]} Be4 {[%emt 0:00:48]} 30. Rf2 {[%emt 0:02:11]} Rea8 {[%emt 0:02:28]} 31. a4 {[%emt 0:00:20]} h4 {[%emt 0:02:28]} 32. a5 {[%emt 0:00:43]} Re8 {[%emt 0:00:16]} 33. Qe3 {[%emt 0:01:55]} Rb8 {[%emt 0:02:46]} 34. Ra3 {[%emt 0:03:02]} Rb1 {[%emt 0:01:52]} 35. Qe2 {[%emt 0:01:38]} Be7 {[%emt 0:02:44]} 36. Bd4 {[%emt 0:03:46]} Rb5 {[%emt 0:00:42]} 37. Qg4 {[%emt 0:01:27]} f6 {[%emt 0:03:28]} 38. Ng6 {[%emt 0:00:25]} Rbxa5 {[%emt 0:01:38]} 39. Rxa5 {[%emt 0:00:14]} Rxa5 {[%emt 0:00:05]} 40. Qe6+ {[%emt 0:00:06]} Kh7 {[%emt 0:00:35]} 41. Nxe7 {[%emt 0:00:58]} Ra4 {[%emt 0:02:45]} 42. Qg8+ {[%emt 0:00:13]} Kh6 {[%emt 0:00:05]} 43. Qh8+ {[%emt 0:00:04]} Bh7 {[%emt 0:00:18]} 44. Bxf6 {[%emt 0:01:03]} 1-0

[Event "Gibraltar Amateurs A 2019"]
[Site "Caleta"]
[Date "2019.01.24"]
[Round "4"]
[White "Guardia Bencomo, Tomas"]
[Black "Dennis, Nigel W"]
[Result "1-0"]
[ECO "B23"]
[WhiteElo "1664"]
[BlackElo "1805"]
[Annotator "NA"]
[PlyCount "77"]
[EventDate "2019.01.18"]
[EventType "swiss"]
[EventCountry "GGB"]
[SourceTitle "playchess.com"]
[Source "ChessBase"]
[SourceQuality "1"]
[TimeControl "6600+10"]

1. e4 {[%emt 0:00:00]} c5 {[%emt 0:00:00]} 2. Nc3 {[%emt 0:00:17]} Nc6 {[%emt 0:00:06]} 3. Bc4 {[%emt 0:00:26]} a6 {[%emt 0:00:54]} 4. a4 {[%emt 0:02:08]} g6 {[%emt 0:00:14]} 5. Qf3 {[%emt 0:01:50]} Ne5 {[%emt 0:01:53]} 6. Qe2 {[%emt 0:01:29]} Nxc4 {[%emt 0:00:07]} 7. Qxc4 {[%emt 0:00:08]} d6 {[%emt 0:00:37]} 8. d4 {[%emt 0:04:07]} cxd4 {[%emt 0:03:55]} 9. Qxd4 {[%emt 0:00:16]} e5 {[%emt 0:00:13]} 10. Qd3 {[%emt 0:02:07]} Nf6 {[%emt 0:00:49]} 11. Bg5 {[%emt 0:00:52]} Be6 {[%emt 0:00:30]} 12. Nge2 {[%emt 0:02:12]} Rc8 {[%emt 0:02:01]} 13. O-O {[%emt 0:06:41]} Be7 {[%emt 0:01:01]} 14. Rad1 {[%emt 0:01:19]} Qc7 {[%emt 0:04:15]} 15. Bxf6 {[%emt 0:02:50]} Bxf6 {[%emt 0:00:18]} 16. Qxd6 {[%emt 0:00:32]} Qxd6 {[%emt 0:01:48]} 17. Rxd6 {[%emt 0:00:11]} Be7 {[%emt 0:02:01]} 18. Rb6 {[%emt 0:05:26]} Rc7 {[%emt 0:01:02]} 19. Nd5 {[%emt 0:00:24]} Bxd5 {[%emt 0:02:01]} 20. exd5 {[%emt 0:05:41]} Bc5 {[%emt 0:05:06]} 21. Rb3 {[%emt 0:01:40]} Kd7 {[%emt 0:02:31]} 22. g4 {[%emt 0:05:30]} f5 {[%emt 0:01:00]} 23. gxf5 {[%emt 0:01:19]} gxf5 {[%emt 0:00:07]} 24. Ng3 {[%emt 0:01:30]} f4 {[%emt 0:04:29]} 25. Ne4 {[%emt 0:01:04]} Kc8 {[%emt 0:01:50]} 26. Rd1 {[%emt 0:01:20]} Ba7 {[%emt 0:01:43]} 27. Rd2 {[%emt 0:12:25]} Bd4 {[%emt 0:07:02]} 28. c3 {[%emt 0:05:29]} Ba7 {[%emt 0:00:07]} 29. d6 {[%emt 0:00:48]} Rg7+ {[%emt 0:00:33]} 30. Kf1 {[%emt 0:02:58]} Rd8 {[%emt 0:04:32]} 31. c4 {[%emt 0:00:51]} Bd4 {[%emt 0:01:15]} 32. c5 {[%emt 0:00:37]} Rg4 {[%emt 0:01:41]} 33. Rf3 {[%emt 0:01:36]} Rdg8 {[%emt 0:01:57]} 34. b4 {[%emt 0:01:07]} Rg1+ {[%emt 0:00:36]} 35. Ke2 {[%emt 0:00:16]} Rb1 {[%emt 0:03:38]} 36. Rc2 {[%emt 0:02:08]} Rxb4 {[%emt 0:12:04]} 37. c6 {[%emt 0:01:56]} Rxa4 {[%emt 0:02:39]} 38. c7 {[%emt 0:04:22]} Rf8 {[%emt 0:07:54]} 39. Nf6 {[%emt 0:01:15]} 1-0